{"text_format":"1","workbook":"xlsx","n_sheets":3,"sheets":["Feuil1","Feuil2","Feuil3"],"not_rendered":{"charts":0,"images":0,"macros":1,"external_links":0,"defined_names":0,"comments":0,"pivot_tables":0},"unopened":[],"bounds":{"document_bytes":16777216,"sheet_cells":100000,"rows_first":2000,"rows_last":500,"rows_between":2000,"halvings":0,"cell_chars":16384,"cell_head_chars":4096},"cells_cut":0,"cells_raw":0,"read":"whole","date_system":"1900"}

{"sheet":"Feuil1","index":0,"n_rows":20,"n_cols":4,"rows_kept":20,"cut":false,"hidden":false,"merged":[]}
[null,null,{"$f":"SommeBissextile(C2:C20)","v":5},{"$f":"DateDemain()","v":"2014-02-19"}]
[null,null,2000,{"$f":"EstBissextile(C2)","v":true}]
[null,null,2001,{"$f":"EstBissextile(C3)","v":false}]
[null,null,2002,false]
[null,null,2003,false]
[null,null,2004,true]
[null,null,2005,false]
[null,null,2006,false]
[null,null,2007,false]
[null,null,2008,true]
[null,null,2009,false]
[null,null,2010,false]
[null,null,2011,false]
[null,null,2012,true]
[null,null,2013,false]
[null,null,2014,false]
[null,null,2015,false]
[null,null,1900,false]
[null,null,2100,false]
[null,null,2400,true]

{"sheet":"Feuil2","index":1,"n_rows":0,"n_cols":0,"rows_kept":0,"cut":false,"hidden":false,"merged":[]}

{"sheet":"Feuil3","index":2,"n_rows":0,"n_cols":0,"rows_kept":0,"cut":false,"hidden":false,"merged":[]}